[Event "Titled Tuesday Blitz April 26 Late 2022"]
[White "February, Jesse Nikki"]
[Black "Vidonyak, Roman"]
[WhiteFideId "14312336"]
[BlackFideId "14100622"]
[WhiteElo "1824"]
[BlackElo "2388"]
[Result "0-1"]
[Round "05"]
[TimeControl "180+1"]
[Date "2022.04.26"]
[WhiteClock "0:00:03"]
[BlackClock "0:00:32"]

1. e4 {[%clk 0:02:02]}  c5 {[%clk 0:02:56]} 2. Nf3 {[%clk 0:02:02]}  d6 {[%clk 0:02:57]} 3. d4 {[%clk 0:02:01]}  cxd4 {[%clk 0:02:57]} 4. Nxd4 {[%clk 0:02:01]}  Nf6 {[%clk 0:02:58]} 5. Nc3 {[%clk 0:02:01]}  a6 {[%clk 0:02:59]} 6. a4 {[%clk 0:01:59]}  e5 {[%clk 0:02:57]} 7. Nde2 {[%clk 0:01:58]}  Be7 {[%clk 0:02:54]} 8. g3 {[%clk 0:01:57]}  Nc6 {[%clk 0:02:52]} 9. Bg2 {[%clk 0:01:57]}  Be6 {[%clk 0:02:52]} 10. O-O {[%clk 0:01:56]}  O-O {[%clk 0:02:51]} 11. h3 {[%clk 0:01:56]}  Nb4 {[%clk 0:02:50]} 12. Nd5 {[%clk 0:01:34]}  Nbxd5 {[%clk 0:02:34]} 13. exd5 {[%clk 0:01:35]}  Bf5 {[%clk 0:02:27]} 14. Be3 {[%clk 0:01:31]}  Rc8 {[%clk 0:02:25]} 15. Rc1 {[%clk 0:01:21]}  Qa5 {[%clk 0:02:23]} 16. b3 {[%clk 0:01:18]}  h6 {[%clk 0:02:15]} 17. c4 {[%clk 0:01:18]}  b5 {[%clk 0:02:13]} 18. axb5 {[%clk 0:01:15]}  axb5 {[%clk 0:02:14]} 19. Ra1 {[%clk 0:01:09]}  Qb4 {[%clk 0:02:04]} 20. Bd2 {[%clk 0:01:07]}  Qc5 {[%clk 0:02:03]} 21. Be3 {[%clk 0:01:05]}  Qc7 {[%clk 0:01:54]} 22. cxb5 {[%clk 0:01:04]}  Bc2 {[%clk 0:01:48]} 23. Qd2 {[%clk 0:00:39]}  Bxb3 {[%clk 0:01:45]} 24. b6 {[%clk 0:00:29]}  Qb8 {[%clk 0:01:42]} 25. Rfc1 {[%clk 0:00:19]}  Rxc1+ {[%clk 0:01:38]} 26. Rxc1 {[%clk 0:00:20]}  Bd8 {[%clk 0:01:31]} 27. Nc3 {[%clk 0:00:16]}  Bxb6 {[%clk 0:01:26]} 28. Qb2 {[%clk 0:00:16]}  Bxe3 {[%clk 0:01:24]} 29. fxe3 {[%clk 0:00:15]}  Bc4 {[%clk 0:01:21]} 30. Qd2 {[%clk 0:00:11]}  Rc8 {[%clk 0:01:18]} 31. Ne4 {[%clk 0:00:08]}  Nxe4 {[%clk 0:00:59]} 32. Bxe4 {[%clk 0:00:09]}  Bb3 {[%clk 0:00:49]} 33. Bf5 {[%clk 0:00:09]}  Rc7 {[%clk 0:00:47]} 34. Rxc7 {[%clk 0:00:09]}  Qxc7 {[%clk 0:00:47]} 35. Qb2 {[%clk 0:00:07]}  Bxd5 {[%clk 0:00:45]} 36. e4 {[%clk 0:00:07]}  Bb7 {[%clk 0:00:43]} 37. Qd2 {[%clk 0:00:07]}  g6 {[%clk 0:00:42]} 38. Qxh6 {[%clk 0:00:02]}  gxf5 {[%clk 0:00:42]} 39. Qg5+ {[%clk 0:00:02]}  Kf8 {[%clk 0:00:40]} 40. exf5 {[%clk 0:00:03]}  Qc5+ {[%clk 0:00:34]} 41. Kf1 {[%clk 0:00:03]}  Qc4+ {[%clk 0:00:32]} 42. Ke1 {[%clk 0:00:03]}  Qc3+ {[%clk 0:00:32]} 43. Kd1 {[%clk 0:00:03]}  Bf3# {[%clk 0:00:32]} 0-1


[Site "https://www.chess.com"]

[Event "Titled Tuesday Blitz April 26 Late 2022"]
[White "Fishbein, Alexander"]
[Black "Alinasab, Mobina"]
[WhiteFideId "2000377"]
[BlackFideId "12528897"]
[WhiteElo "2442"]
[BlackElo "2031"]
[Result "0-1"]
[Round "05"]
[TimeControl "180+1"]
[Date "2022.04.26"]
[WhiteClock "0:00:01"]
[BlackClock "0:00:09"]

1. e4 {[%clk 0:03:00]}  c5 {[%clk 0:02:59]} 2. Nf3 {[%clk 0:03:00]}  d6 {[%clk 0:03:00]} 3. d4 {[%clk 0:02:59]}  cxd4 {[%clk 0:03:01]} 4. Nxd4 {[%clk 0:02:59]}  Nf6 {[%clk 0:03:02]} 5. Nc3 {[%clk 0:02:58]}  a6 {[%clk 0:03:03]} 6. Be2 {[%clk 0:02:58]}  e5 {[%clk 0:03:01]} 7. Nb3 {[%clk 0:02:58]}  Be7 {[%clk 0:03:02]} 8. O-O {[%clk 0:02:57]}  O-O {[%clk 0:03:03]} 9. Qd3 {[%clk 0:02:57]}  Be6 {[%clk 0:03:03]} 10. Bd2 {[%clk 0:02:57]}  Nbd7 {[%clk 0:03:03]} 11. Nd5 {[%clk 0:02:54]}  Bxd5 {[%clk 0:02:59]} 12. exd5 {[%clk 0:02:53]}  b5 {[%clk 0:02:56]} 13. a4 {[%clk 0:02:41]}  bxa4 {[%clk 0:02:15]} 14. Rxa4 {[%clk 0:02:40]}  Nb6 {[%clk 0:02:14]} 15. Rxa6 {[%clk 0:02:39]}  Nbxd5 {[%clk 0:02:09]} 16. Rxa8 {[%clk 0:02:36]}  Qxa8 {[%clk 0:02:10]} 17. Bf3 {[%clk 0:02:34]}  Rb8 {[%clk 0:01:56]} 18. Ra1 {[%clk 0:02:24]}  Qb7 {[%clk 0:01:47]} 19. Ra5 {[%clk 0:02:08]}  Nb4 {[%clk 0:01:17]} 20. Bxb7 {[%clk 0:00:54]}  Nxd3 {[%clk 0:01:15]} 21. Rb5 {[%clk 0:00:50]}  Nxb2 {[%clk 0:00:56]} 22. Na5 {[%clk 0:00:50]}  Na4 {[%clk 0:00:56]} 23. Nc6 {[%clk 0:00:50]}  Re8 {[%clk 0:00:56]} 24. Bb4 {[%clk 0:00:31]}  Nc5 {[%clk 0:00:53]} 25. Bxc5 {[%clk 0:00:20]}  dxc5 {[%clk 0:00:54]} 26. Nxe7+ {[%clk 0:00:18]}  Rxe7 {[%clk 0:00:52]} 27. Rxc5 {[%clk 0:00:19]}  g6 {[%clk 0:00:51]} 28. Ba6 {[%clk 0:00:16]}  Kg7 {[%clk 0:00:48]} 29. g3 {[%clk 0:00:16]}  Ne4 {[%clk 0:00:48]} 30. Rc6 {[%clk 0:00:14]}  f5 {[%clk 0:00:47]} 31. Bd3 {[%clk 0:00:14]}  Nf6 {[%clk 0:00:46]} 32. Bc4 {[%clk 0:00:14]}  e4 {[%clk 0:00:45]} 33. Bb3 {[%clk 0:00:13]}  Ng4 {[%clk 0:00:46]} 34. Kg2 {[%clk 0:00:10]}  Rd7 {[%clk 0:00:44]} 35. h3 {[%clk 0:00:08]}  Ne5 {[%clk 0:00:43]} 36. Re6 {[%clk 0:00:08]}  Nf3 {[%clk 0:00:43]} 37. h4 {[%clk 0:00:04]}  Rd1 {[%clk 0:00:43]} 38. Re7+ {[%clk 0:00:04]}  Kf6 {[%clk 0:00:39]} 39. Rf7+ {[%clk 0:00:03]}  Ke5 {[%clk 0:00:36]} 40. Rxh7 {[%clk 0:00:03]}  Rg1+ {[%clk 0:00:33]} 41. Kh3 {[%clk 0:00:03]}  Ne1 {[%clk 0:00:14]} 42. Kh2 {[%clk 0:00:02]}  Rg2+ {[%clk 0:00:14]} 43. Kh3 {[%clk 0:00:01]}  Rxf2 {[%clk 0:00:15]} 44. Re7+ {[%clk 0:00:01]}  Kd4 {[%clk 0:00:15]} 45. Re6 {[%clk 0:00:02]}  Nf3 {[%clk 0:00:14]} 46. g4 {[%clk 0:00:02]}  f4 {[%clk 0:00:14]} 47. g5 {[%clk 0:00:02]}  Ne5 {[%clk 0:00:11]} 48. Rd6+ {[%clk 0:00:02]}  Ke3 {[%clk 0:00:11]} 49. Re6 {[%clk 0:00:01]}  Nf3 {[%clk 0:00:08]} 50. Rxg6 {[%clk 0:00:02]}  Ng1+ {[%clk 0:00:07]} 51. Kg4 {[%clk 0:00:02]}  Rg2+ {[%clk 0:00:07]} 52. Kf5 {[%clk 0:00:02]}  f3 {[%clk 0:00:08]} 53. h5 {[%clk 0:00:02]}  f2 {[%clk 0:00:08]} 54. Bc4 {[%clk 0:00:03]}  Ne2 {[%clk 0:00:08]} 55. h6 {[%clk 0:00:01]}  f1=Q+ {[%clk 0:00:08]} 56. Ke6 {[%clk 0:00:01]}  Nf4+ {[%clk 0:00:08]} 57. Ke7 {[%clk 0:00:01]}  Qxc4 {[%clk 0:00:08]} 58. Rf6 {[%clk 0:00:01]}  Qc5+ {[%clk 0:00:09]} 0-1


[Site "https://www.chess.com"]

[Event "Titled Tuesday Blitz April 26 Late 2022"]
[White "Golubev, Mikhail"]
[Black "Yedidia, Daniel"]
[WhiteFideId "14100983"]
[BlackFideId "30905907"]
[WhiteElo "2374"]
[BlackElo "2599"]
[Result "1-0"]
[Round "05"]
[TimeControl "180+1"]
[Date "2022.04.26"]
[WhiteClock "0:00:17"]
[BlackClock "0:00:13"]

1. e4 {[%clk 0:03:00]}  e5 {[%clk 0:02:57]} 2. Nf3 {[%clk 0:03:00]}  Nc6 {[%clk 0:02:57]} 3. Bb5 {[%clk 0:03:00]}  a6 {[%clk 0:02:57]} 4. Ba4 {[%clk 0:03:00]}  Nf6 {[%clk 0:02:58]} 5. O-O {[%clk 0:02:59]}  Be7 {[%clk 0:02:58]} 6. Re1 {[%clk 0:02:57]}  b5 {[%clk 0:02:59]} 7. Bb3 {[%clk 0:02:57]}  O-O {[%clk 0:03:00]} 8. a4 {[%clk 0:02:57]}  b4 {[%clk 0:03:00]} 9. d3 {[%clk 0:02:53]}  d6 {[%clk 0:02:59]} 10. Nbd2 {[%clk 0:02:52]}  Be6 {[%clk 0:02:57]} 11. Bxe6 {[%clk 0:02:38]}  fxe6 {[%clk 0:02:58]} 12. Nc4 {[%clk 0:02:36]}  h6 {[%clk 0:02:51]} 13. c3 {[%clk 0:02:26]}  a5 {[%clk 0:02:46]} 14. Bd2 {[%clk 0:02:22]}  Qe8 {[%clk 0:02:44]} 15. cxb4 {[%clk 0:02:15]}  axb4 {[%clk 0:02:44]} 16. h3 {[%clk 0:01:31]}  Qg6 {[%clk 0:02:37]} 17. Nh2 {[%clk 0:01:06]}  Rab8 {[%clk 0:02:25]} 18. a5 {[%clk 0:01:03]}  Nd4 {[%clk 0:02:02]} 19. Be3 {[%clk 0:01:00]}  b3 {[%clk 0:01:52]} 20. Bxd4 {[%clk 0:00:56]}  exd4 {[%clk 0:01:53]} 21. e5 {[%clk 0:00:54]}  Nd5 {[%clk 0:01:48]} 22. exd6 {[%clk 0:00:50]}  cxd6 {[%clk 0:01:46]} 23. Qg4 {[%clk 0:00:49]}  Qxg4 {[%clk 0:01:45]} 24. Nxg4 {[%clk 0:00:49]}  e5 {[%clk 0:01:45]} 25. Ngxe5 {[%clk 0:00:34]}  Bh4 {[%clk 0:01:23]} 26. Nf3 {[%clk 0:00:29]}  Bf6 {[%clk 0:01:20]} 27. a6 {[%clk 0:00:23]}  Nb4 {[%clk 0:01:16]} 28. a7 {[%clk 0:00:22]}  Ra8 {[%clk 0:01:11]} 29. Nb6 {[%clk 0:00:22]}  Nc2 {[%clk 0:01:11]} 30. Ra4 {[%clk 0:00:20]}  Nxe1 {[%clk 0:01:08]} 31. Nxe1 {[%clk 0:00:21]}  Rfe8 {[%clk 0:00:41]} 32. Nf3 {[%clk 0:00:20]}  Kf7 {[%clk 0:00:28]} 33. Nxa8 {[%clk 0:00:21]}  Rxa8 {[%clk 0:00:28]} 34. Nxd4 {[%clk 0:00:21]}  Bxd4 {[%clk 0:00:28]} 35. Rxd4 {[%clk 0:00:20]}  Rxa7 {[%clk 0:00:28]} 36. Rb4 {[%clk 0:00:20]}  Ra1+ {[%clk 0:00:27]} 37. Kh2 {[%clk 0:00:20]}  Rf1 {[%clk 0:00:25]} 38. f3 {[%clk 0:00:20]}  Ke6 {[%clk 0:00:25]} 39. Rxb3 {[%clk 0:00:20]}  Kd5 {[%clk 0:00:26]} 40. Rb4 {[%clk 0:00:21]}  Rd1 {[%clk 0:00:26]} 41. Rb7 {[%clk 0:00:19]}  Rxd3 {[%clk 0:00:22]} 42. Rxg7 {[%clk 0:00:19]}  Kc4 {[%clk 0:00:20]} 43. Rg6 {[%clk 0:00:18]}  d5 {[%clk 0:00:19]} 44. Rxh6 {[%clk 0:00:18]}  d4 {[%clk 0:00:20]} 45. Rc6+ {[%clk 0:00:18]}  Kb5 {[%clk 0:00:20]} 46. Rc8 {[%clk 0:00:17]}  Rb3 {[%clk 0:00:19]} 47. h4 {[%clk 0:00:17]}  d3 {[%clk 0:00:18]} 48. h5 {[%clk 0:00:16]}  Rb4 {[%clk 0:00:19]} 49. Rd8 {[%clk 0:00:16]}  Kc4 {[%clk 0:00:11]} 50. h6 {[%clk 0:00:15]}  Rb5 {[%clk 0:00:12]} 51. Kg3 {[%clk 0:00:14]}  Rh5 {[%clk 0:00:11]} 52. Rd6 {[%clk 0:00:14]}  Kc5 {[%clk 0:00:08]} 53. Rxd3 {[%clk 0:00:14]}  Rxh6 {[%clk 0:00:08]} 54. Re3 {[%clk 0:00:14]}  Kd4 {[%clk 0:00:09]} 55. Re4+ {[%clk 0:00:14]}  Kd5 {[%clk 0:00:09]} 56. b4 {[%clk 0:00:14]}  Rb6 {[%clk 0:00:10]} 57. Kf2 {[%clk 0:00:14]}  Ra6 {[%clk 0:00:10]} 58. Kg3 {[%clk 0:00:14]}  Ra2 {[%clk 0:00:10]} 59. Kh3 {[%clk 0:00:14]}  Ra1 {[%clk 0:00:10]} 60. g3 {[%clk 0:00:14]}  Rg1 {[%clk 0:00:10]} 61. Kg4 {[%clk 0:00:15]}  Rb1 {[%clk 0:00:10]} 62. Kf4 {[%clk 0:00:15]}  Rh1 {[%clk 0:00:10]} 63. Kg4 {[%clk 0:00:15]}  Rd1 {[%clk 0:00:10]} 64. Rf4 {[%clk 0:00:15]}  Rd3 {[%clk 0:00:10]} 65. b5 {[%clk 0:00:15]}  Kc5 {[%clk 0:00:10]} 66. Rf5+ {[%clk 0:00:16]}  Kb6 {[%clk 0:00:11]} 67. f4 {[%clk 0:00:16]}  Rd7 {[%clk 0:00:11]} 68. Kh4 {[%clk 0:00:16]}  Rh7+ {[%clk 0:00:11]} 69. Kg4 {[%clk 0:00:17]}  Rg7+ {[%clk 0:00:11]} 70. Kf3 {[%clk 0:00:17]}  Rh7 {[%clk 0:00:12]} 71. g4 {[%clk 0:00:17]}  Rh1 {[%clk 0:00:13]} 72. g5 {[%clk 0:00:17]} 1-0


[Site "https://www.chess.com"]

[Event "Titled Tuesday Blitz April 26 Late 2022"]
[White "Grischuk, Alexander"]
[Black "Mikhailov, Viacheslav"]
[WhiteFideId "4126025"]
[BlackFideId "4187369"]
[WhiteElo "2762"]
[BlackElo "2381"]
[Result "1-0"]
[Round "05"]
[TimeControl "180+1"]
[Date "2022.04.26"]
[WhiteClock "0:01:55"]
[BlackClock "0:00:35"]

1. d4 {[%clk 0:03:00]}  c5 {[%clk 0:02:58]} 2. d5 {[%clk 0:03:00]}  e5 {[%clk 0:02:59]} 3. e4 {[%clk 0:02:59]}  d6 {[%clk 0:02:59]} 4. Bb5+ {[%clk 0:02:58]}  Nd7 {[%clk 0:02:58]} 5. a4 {[%clk 0:02:58]}  a6 {[%clk 0:02:59]} 6. Bd3 {[%clk 0:02:56]}  Be7 {[%clk 0:02:59]} 7. Na3 {[%clk 0:02:52]}  Bg5 {[%clk 0:02:58]} 8. Nc4 {[%clk 0:02:49]}  Be7 {[%clk 0:02:42]} 9. a5 {[%clk 0:02:49]}  Ngf6 {[%clk 0:02:35]} 10. Ne2 {[%clk 0:02:49]}  O-O {[%clk 0:02:35]} 11. Ng3 {[%clk 0:02:45]}  Re8 {[%clk 0:02:35]} 12. Nf5 {[%clk 0:02:41]}  Nf8 {[%clk 0:02:30]} 13. Qf3 {[%clk 0:02:38]}  Ng6 {[%clk 0:02:25]} 14. O-O {[%clk 0:02:38]}  Rb8 {[%clk 0:02:24]} 15. g3 {[%clk 0:02:32]}  Bxf5 {[%clk 0:02:13]} 16. Qxf5 {[%clk 0:02:33]}  Qd7 {[%clk 0:02:12]} 17. Qxd7 {[%clk 0:02:30]}  Nxd7 {[%clk 0:02:13]} 18. h4 {[%clk 0:02:29]}  Ngf8 {[%clk 0:02:01]} 19. Kg2 {[%clk 0:02:27]}  Rec8 {[%clk 0:01:45]} 20. Bg5 {[%clk 0:02:17]}  Bxg5 {[%clk 0:01:43]} 21. hxg5 {[%clk 0:02:17]}  b5 {[%clk 0:01:41]} 22. axb6 {[%clk 0:02:17]}  Nxb6 {[%clk 0:01:41]} 23. Nxd6 {[%clk 0:02:17]}  Rd8 {[%clk 0:01:39]} 24. Nf5 {[%clk 0:02:15]}  c4 {[%clk 0:01:39]} 25. Be2 {[%clk 0:02:15]}  Ng6 {[%clk 0:01:32]} 26. Rxa6 {[%clk 0:02:14]}  Nd7 {[%clk 0:01:32]} 27. Ra2 {[%clk 0:02:08]}  Nc5 {[%clk 0:01:31]} 28. f3 {[%clk 0:02:08]}  Rb4 {[%clk 0:00:50]} 29. c3 {[%clk 0:02:04]}  Ra4 {[%clk 0:00:46]} 30. Rfa1 {[%clk 0:02:03]}  Rda8 {[%clk 0:00:45]} 31. Bxc4 {[%clk 0:02:01]}  Rxa2 {[%clk 0:00:41]} 32. Rxa2 {[%clk 0:02:02]}  Rxa2 {[%clk 0:00:40]} 33. Bxa2 {[%clk 0:02:03]}  Na4 {[%clk 0:00:40]} 34. d6 {[%clk 0:02:03]}  Nf8 {[%clk 0:00:38]} 35. Ne7+ {[%clk 0:02:01]}  Kh8 {[%clk 0:00:38]} 36. Bxf7 {[%clk 0:02:00]}  Nxb2 {[%clk 0:00:39]} 37. Nc6 {[%clk 0:01:57]}  Na4 {[%clk 0:00:35]} 38. Nxe5 {[%clk 0:01:55]}  Nxc3 {[%clk 0:00:35]} 39. d7 {[%clk 0:01:55]} 1-0


[Site "https://www.chess.com"]

[Event "Titled Tuesday Blitz April 26 Late 2022"]
[White "Gutierrez Olivares, Daniel"]
[Black "Zhurbinsky, David"]
[WhiteFideId "2264005"]
[BlackFideId "2072904"]
[WhiteElo "2317"]
[BlackElo "2558"]
[Result "0-1"]
[Round "05"]
[TimeControl "180+1"]
[Date "2022.04.26"]
[WhiteClock "0:00:12"]
[BlackClock "0:00:12"]

1. Nf3 {[%clk 0:03:00]}  Nf6 {[%clk 0:01:49]} 2. g3 {[%clk 0:03:01]}  e6 {[%clk 0:01:49]} 3. c4 {[%clk 0:03:02]}  d5 {[%clk 0:01:50]} 4. Bg2 {[%clk 0:03:01]}  c5 {[%clk 0:01:51]} 5. O-O {[%clk 0:03:00]}  d4 {[%clk 0:01:52]} 6. e3 {[%clk 0:02:58]}  Nc6 {[%clk 0:01:53]} 7. exd4 {[%clk 0:02:59]}  cxd4 {[%clk 0:01:53]} 8. Re1 {[%clk 0:02:58]}  Bd6 {[%clk 0:01:54]} 9. a3 {[%clk 0:02:56]}  O-O {[%clk 0:01:54]} 10. b4 {[%clk 0:02:56]}  a6 {[%clk 0:01:54]} 11. d3 {[%clk 0:02:55]}  e5 {[%clk 0:01:54]} 12. Bg5 {[%clk 0:02:55]}  h6 {[%clk 0:01:54]} 13. Bxf6 {[%clk 0:02:55]}  Qxf6 {[%clk 0:01:55]} 14. Nbd2 {[%clk 0:02:56]}  Bf5 {[%clk 0:01:55]} 15. Qb3 {[%clk 0:02:50]}  Bc7 {[%clk 0:01:49]} 16. Nh4 {[%clk 0:02:49]}  Bh7 {[%clk 0:01:44]} 17. c5 {[%clk 0:02:37]}  Kh8 {[%clk 0:01:33]} 18. a4 {[%clk 0:02:29]}  g5 {[%clk 0:01:29]} 19. Nhf3 {[%clk 0:02:28]}  Qg6 {[%clk 0:01:27]} 20. Ne4 {[%clk 0:02:09]}  f5 {[%clk 0:01:26]} 21. Nd6 {[%clk 0:02:10]}  Bxd6 {[%clk 0:01:25]} 22. cxd6 {[%clk 0:02:10]}  Qxd6 {[%clk 0:01:25]} 23. b5 {[%clk 0:02:11]}  axb5 {[%clk 0:01:23]} 24. Qxb5 {[%clk 0:02:05]}  Rfe8 {[%clk 0:01:04]} 25. Nd2 {[%clk 0:02:00]}  Na5 {[%clk 0:00:57]} 26. Rac1 {[%clk 0:01:47]}  Bg8 {[%clk 0:00:51]} 27. Rc5 {[%clk 0:01:43]}  Nc6 {[%clk 0:00:36]} 28. Bxc6 {[%clk 0:01:20]}  bxc6 {[%clk 0:00:36]} 29. Rxc6 {[%clk 0:01:20]}  Qd5 {[%clk 0:00:29]} 30. Rxh6+ {[%clk 0:01:18]}  Kg7 {[%clk 0:00:28]} 31. Qb6 {[%clk 0:01:13]}  Re6 {[%clk 0:00:25]} 32. Rxe6 {[%clk 0:01:10]}  Bxe6 {[%clk 0:00:26]} 33. Rc1 {[%clk 0:01:00]}  Rxa4 {[%clk 0:00:20]} 34. Rc7+ {[%clk 0:00:48]}  Kf6 {[%clk 0:00:21]} 35. Qb8 {[%clk 0:00:37]}  Ra1+ {[%clk 0:00:21]} 36. Nf1 {[%clk 0:00:37]}  Ra8 {[%clk 0:00:21]} 37. Qb4 {[%clk 0:00:33]}  Re8 {[%clk 0:00:21]} 38. Qa4 {[%clk 0:00:27]}  Rd8 {[%clk 0:00:16]} 39. Qd1 {[%clk 0:00:26]}  Rh8 {[%clk 0:00:15]} 40. Qa1 {[%clk 0:00:24]}  Bd7 {[%clk 0:00:14]} 41. Qa7 {[%clk 0:00:25]}  Bc6 {[%clk 0:00:13]} 42. f3 {[%clk 0:00:12]}  Qxf3 {[%clk 0:00:14]} 43. Rf7+ {[%clk 0:00:13]}  Kg6 {[%clk 0:00:13]} 44. Rg7+ {[%clk 0:00:12]}  Kh6 {[%clk 0:00:12]} 0-1


[Site "https://www.chess.com"]

[Event "Titled Tuesday Blitz April 26 Late 2022"]
[White "Hirneise, Jens"]
[Black "Qiao, Cindy"]
[WhiteFideId "24614734"]
[BlackFideId "2620243"]
[WhiteElo "2359"]
[BlackElo "2246"]
[Result "1-0"]
[Round "05"]
[TimeControl "180+1"]
[Date "2022.04.26"]
[WhiteClock "0:00:16"]
[BlackClock "0:00:12"]

1. e4 {[%clk 0:03:00]}  c5 {[%clk 0:02:59]} 2. Nc3 {[%clk 0:02:57]}  d6 {[%clk 0:02:59]} 3. d4 {[%clk 0:02:57]}  cxd4 {[%clk 0:03:00]} 4. Qxd4 {[%clk 0:02:58]}  Nc6 {[%clk 0:02:58]} 5. Qd2 {[%clk 0:02:58]}  Nf6 {[%clk 0:02:54]} 6. b3 {[%clk 0:02:58]}  e6 {[%clk 0:02:49]} 7. Bb2 {[%clk 0:02:58]}  Be7 {[%clk 0:02:49]} 8. O-O-O {[%clk 0:02:58]}  O-O {[%clk 0:02:48]} 9. Kb1 {[%clk 0:02:56]}  a6 {[%clk 0:02:46]} 10. a4 {[%clk 0:02:48]}  Bd7 {[%clk 0:02:28]} 11. f4 {[%clk 0:02:33]}  Qb8 {[%clk 0:02:02]} 12. Nf3 {[%clk 0:02:31]}  Rd8 {[%clk 0:01:53]} 13. g4 {[%clk 0:02:19]}  b5 {[%clk 0:01:05]} 14. g5 {[%clk 0:02:14]}  Ne8 {[%clk 0:01:04]} 15. axb5 {[%clk 0:01:58]}  axb5 {[%clk 0:01:04]} 16. Bxb5 {[%clk 0:01:58]}  Nb4 {[%clk 0:00:51]} 17. Qd4 {[%clk 0:01:48]}  Bxb5 {[%clk 0:00:37]} 18. Qxb4 {[%clk 0:01:46]}  Bc6 {[%clk 0:00:33]} 19. Qxb8 {[%clk 0:01:46]}  Rdxb8 {[%clk 0:00:34]} 20. Nd4 {[%clk 0:01:32]}  Bb7 {[%clk 0:00:31]} 21. h4 {[%clk 0:01:28]}  Rc8 {[%clk 0:00:30]} 22. h5 {[%clk 0:01:12]}  Rc5 {[%clk 0:00:27]} 23. g6 {[%clk 0:01:11]}  e5 {[%clk 0:00:21]} 24. Nf5 {[%clk 0:01:09]}  Bf8 {[%clk 0:00:19]} 25. gxf7+ {[%clk 0:01:00]}  Kxf7 {[%clk 0:00:20]} 26. Na4 {[%clk 0:01:00]}  Rc6 {[%clk 0:00:19]} 27. fxe5 {[%clk 0:00:59]}  dxe5 {[%clk 0:00:20]} 28. Bxe5 {[%clk 0:00:57]}  Rac8 {[%clk 0:00:20]} 29. Rd7+ {[%clk 0:00:51]}  Ke6 {[%clk 0:00:20]} 30. Rxb7 {[%clk 0:00:47]}  Kxe5 {[%clk 0:00:20]} 31. Rb5+ {[%clk 0:00:36]}  Kxe4 {[%clk 0:00:19]} 32. Re1+ {[%clk 0:00:34]}  Kf4 {[%clk 0:00:20]} 33. Nd4 {[%clk 0:00:28]}  Rd6 {[%clk 0:00:14]} 34. Rf5+ {[%clk 0:00:27]}  Kg3 {[%clk 0:00:11]} 35. Rg1+ {[%clk 0:00:25]}  Kh4 {[%clk 0:00:11]} 36. Nf3+ {[%clk 0:00:19]}  Kh3 {[%clk 0:00:12]} 37. Rfg5 {[%clk 0:00:16]} 1-0


[Site "https://www.chess.com"]

[Event "Titled Tuesday Blitz April 26 Late 2022"]
[White "Hoffmann, Asa"]
[Black "Mickiewicz, Piotr"]
[WhiteFideId "2001470"]
[BlackFideId "1114891"]
[WhiteElo "2117"]
[BlackElo "2266"]
[Result "0-1"]
[Round "05"]
[TimeControl "180+1"]
[Date "2022.04.26"]
[WhiteClock "0:00:08"]
[BlackClock "0:00:12"]

1. d4 {[%clk 0:02:56]}  Nf6 {[%clk 0:02:58]} 2. Bg5 {[%clk 0:02:54]}  c5 {[%clk 0:02:57]} 3. d5 {[%clk 0:02:53]}  d6 {[%clk 0:02:53]} 4. Nc3 {[%clk 0:02:52]}  a6 {[%clk 0:02:50]} 5. a4 {[%clk 0:02:51]}  g6 {[%clk 0:02:40]} 6. e4 {[%clk 0:02:49]}  Bg7 {[%clk 0:02:39]} 7. f3 {[%clk 0:02:49]}  O-O {[%clk 0:02:34]} 8. Qd2 {[%clk 0:02:48]}  Qa5 {[%clk 0:02:20]} 9. Ra3 {[%clk 0:02:48]}  Nbd7 {[%clk 0:01:57]} 10. Bh6 {[%clk 0:02:45]}  Bxh6 {[%clk 0:01:44]} 11. Qxh6 {[%clk 0:02:44]}  e6 {[%clk 0:01:44]} 12. dxe6 {[%clk 0:02:38]}  fxe6 {[%clk 0:01:43]} 13. Qd2 {[%clk 0:02:33]}  d5 {[%clk 0:01:33]} 14. Nh3 {[%clk 0:02:27]}  d4 {[%clk 0:01:31]} 15. Nb1 {[%clk 0:02:23]}  Qc7 {[%clk 0:01:23]} 16. Be2 {[%clk 0:02:15]}  Ne5 {[%clk 0:01:16]} 17. O-O {[%clk 0:02:14]}  Bd7 {[%clk 0:01:08]} 18. a5 {[%clk 0:02:07]}  Bb5 {[%clk 0:01:04]} 19. b3 {[%clk 0:01:50]}  Rad8 {[%clk 0:01:01]} 20. Bd3 {[%clk 0:01:45]}  c4 {[%clk 0:00:55]} 21. bxc4 {[%clk 0:01:43]}  Nxc4 {[%clk 0:00:54]} 22. Bxc4 {[%clk 0:01:41]}  Bxc4 {[%clk 0:00:55]} 23. Rd1 {[%clk 0:01:39]}  e5 {[%clk 0:00:45]} 24. Nf2 {[%clk 0:01:35]}  Nh5 {[%clk 0:00:39]} 25. Qb4 {[%clk 0:01:17]}  Nf4 {[%clk 0:00:34]} 26. Nd2 {[%clk 0:01:14]}  Bb5 {[%clk 0:00:23]} 27. c4 {[%clk 0:01:11]}  dxc3 {[%clk 0:00:18]} 28. Nf1 {[%clk 0:01:03]}  Ne2+ {[%clk 0:00:17]} 29. Kh1 {[%clk 0:01:02]}  Rxd1 {[%clk 0:00:18]} 30. Nxd1 {[%clk 0:00:59]}  c2 {[%clk 0:00:18]} 31. Ra1 {[%clk 0:00:44]}  cxd1=Q {[%clk 0:00:17]} 32. Rxd1 {[%clk 0:00:43]}  Kg7 {[%clk 0:00:16]} 33. Ne3 {[%clk 0:00:40]}  Nd4 {[%clk 0:00:15]} 34. Nd5 {[%clk 0:00:39]}  Qd7 {[%clk 0:00:14]} 35. Rc1 {[%clk 0:00:36]}  Bc6 {[%clk 0:00:14]} 36. Rc5 {[%clk 0:00:33]}  Rf7 {[%clk 0:00:14]} 37. Qb6 {[%clk 0:00:27]}  Bxd5 {[%clk 0:00:13]} 38. Rxd5 {[%clk 0:00:26]}  Qc6 {[%clk 0:00:13]} 39. h3 {[%clk 0:00:24]}  Qxb6 {[%clk 0:00:13]} 40. axb6 {[%clk 0:00:23]}  Nc6 {[%clk 0:00:14]} 41. Rc5 {[%clk 0:00:18]}  g5 {[%clk 0:00:14]} 42. Kg1 {[%clk 0:00:17]}  h5 {[%clk 0:00:15]} 43. Kf2 {[%clk 0:00:17]}  h4 {[%clk 0:00:15]} 44. Ke3 {[%clk 0:00:17]}  Kf6 {[%clk 0:00:16]} 45. Kd3 {[%clk 0:00:16]}  Ke6 {[%clk 0:00:17]} 46. Kc4 {[%clk 0:00:16]}  Rd7 {[%clk 0:00:17]} 47. Rd5 {[%clk 0:00:14]}  a5 {[%clk 0:00:13]} 48. Kc5 {[%clk 0:00:13]}  a4 {[%clk 0:00:13]} 49. Rxd7 {[%clk 0:00:09]}  Kxd7 {[%clk 0:00:12]} 50. Kc4 {[%clk 0:00:09]}  Kd6 {[%clk 0:00:13]} 51. Kc3 {[%clk 0:00:08]}  Kc5 {[%clk 0:00:13]} 52. Kb2 {[%clk 0:00:08]}  Kxb6 {[%clk 0:00:12]} 0-1


[Site "https://www.chess.com"]